[Event "Live Chess"]
[Site "Chess.com"]
[Date "2023.05.20"]
[Round "-"]
[White "ameetghasi100"]
[Black "omisoc"]
[Result "1-0"]
[WhiteElo "2686"]
[BlackElo "2156"]
[TimeControl "300"]
[EndTime "13:17:52 PDT"]
[Termination "ameetghasi100 won by resignation"]

1. c4 {[%clk 0:04:58.6]} 1... e6 {[%clk 0:04:55.7]} 2. Nc3 {[%clk 0:04:50.7]}
2... d5 {[%clk 0:04:43.7]} 3. e3 {[%clk 0:04:50.6]} 3... Nf6 {[%clk 0:04:40.5]}
4. Nf3 {[%clk 0:04:47.5]} 4... Be7 {[%clk 0:04:29.6]} 5. b3 {[%clk 0:04:28.9]}
5... b6 {[%clk 0:04:16.8]} 6. Bb2 {[%clk 0:04:26.8]} 6... Bb7 {[%clk 0:04:15.4]}
7. Qc2 {[%clk 0:04:18.4]} 7... Nbd7 {[%clk 0:04:13.5]} 8. Be2 {[%clk 0:04:14.9]}
8... O-O {[%clk 0:04:12]} 9. cxd5 {[%clk 0:04:07.2]} 9... exd5 {[%clk
0:04:08.3]} 10. Nd4 {[%clk 0:03:52.8]} 10... Re8 {[%clk 0:04:06.6]} 11. Nf5
{[%clk 0:03:51.5]} 11... Bf8 {[%clk 0:04:05.1]} 12. O-O {[%clk 0:03:31.1]} 12...
g6 {[%clk 0:03:58.1]} 13. Nd4 {[%clk 0:03:30.3]} 13... c5 {[%clk 0:03:46.9]} 14.
Nf3 {[%clk 0:03:29.4]} 14... d4 {[%clk 0:03:37]} 15. exd4 {[%clk 0:03:24.6]}
15... cxd4 {[%clk 0:03:34.6]} 16. Nxd4 {[%clk 0:03:22.6]} 16... Nc5 {[%clk
0:03:23.5]} 17. Nf3 {[%clk 0:03:21.4]} 17... Rc8 {[%clk 0:03:19.5]} 18. Rfe1
{[%clk 0:03:18.9]} 18... Bg7 {[%clk 0:03:17.5]} 19. Rad1 {[%clk 0:03:15.1]}
19... Qd7 {[%clk 0:03:03.4]} 20. d4 {[%clk 0:03:08.4]} 20... Nce4 {[%clk
0:02:59.2]} 21. Ne5 {[%clk 0:03:07.4]} 21... Qc7 {[%clk 0:02:52.7]} 22. Bc4
{[%clk 0:03:05.5]} 22... Nd6 {[%clk 0:02:48.6]} 23. Ba3 {[%clk 0:02:58.5]} 23...
Nxc4 {[%clk 0:02:41.2]} 24. bxc4 {[%clk 0:02:58.4]} 24... Nd7 {[%clk 0:02:39.2]}
25. Nb5 {[%clk 0:02:56.9]} 25... Qd8 {[%clk 0:02:36.2]} 26. Nd6 {[%clk
0:02:54.8]} 1-0

[Event "Live Chess"]
[Site "Chess.com"]
[Date "2023.05.20"]
[Round "-"]
[White "fso"]
[Black "SiDebanks"]
[Result "1-0"]
[WhiteElo "2263"]
[BlackElo "1372"]
[TimeControl "300"]
[EndTime "13:17:53 PDT"]
[Termination "fso won on time"]

1. e4 {[%clk 0:04:55.7]} 1... c6 {[%clk 0:04:58.9]} 2. d4 {[%clk 0:04:53.2]}
2... d5 {[%clk 0:04:58.8]} 3. Nd2 {[%clk 0:04:51.8]} 3... dxe4 {[%clk 0:04:58]}
4. Nxe4 {[%clk 0:04:51.7]} 4... Nf6 {[%clk 0:04:57.4]} 5. Qe2 {[%clk 0:04:51.6]}
5... Bf5 {[%clk 0:04:46.3]} 6. Nxf6+ {[%clk 0:04:48.1]} 6... gxf6 {[%clk
0:04:46.2]} 7. Nf3 {[%clk 0:04:47.5]} 7... Nd7 {[%clk 0:04:17.6]} 8. h3 {[%clk
0:04:35.2]} 8... Bg7 {[%clk 0:04:15.2]} 9. Nh4 {[%clk 0:04:27.9]} 9... Bg6
{[%clk 0:04:05.4]} 10. c3 {[%clk 0:04:20.2]} 10... O-O {[%clk 0:03:43.3]} 11.
Nxg6 {[%clk 0:04:12.7]} 11... fxg6 {[%clk 0:03:38.1]} 12. Qe6+ {[%clk 0:04:08]}
12... Kh8 {[%clk 0:03:30.5]} 13. Bc4 {[%clk 0:04:04.4]} 13... Nb6 {[%clk
0:03:15.2]} 14. Bb3 {[%clk 0:04:03.6]} 14... Nd5 {[%clk 0:03:08.3]} 15. O-O
{[%clk 0:03:50.7]} 15... Qd6 {[%clk 0:02:23.5]} 16. Qxd6 {[%clk 0:02:56.3]}
16... exd6 {[%clk 0:02:23.4]} 17. Bxd5 {[%clk 0:02:55.3]} 17... cxd5 {[%clk
0:02:22.4]} 18. Re1 {[%clk 0:02:54.9]} 18... Rae8 {[%clk 0:02:18.8]} 19. Bd2
{[%clk 0:02:53.2]} 19... Re4 {[%clk 0:01:57.4]} 20. f3 {[%clk 0:02:47.1]} 20...
Ree8 {[%clk 0:01:51.8]} 21. Bf4 {[%clk 0:02:44.6]} 21... Kg8 {[%clk 0:01:02.4]}
22. Bxd6 {[%clk 0:02:41.6]} 22... Rxe1+ {[%clk 0:01:00.9]} 23. Rxe1 {[%clk
0:02:40]} 23... Rf7 {[%clk 0:00:56.3]} 24. Re8+ {[%clk 0:02:24.5]} 24... Bf8
{[%clk 0:00:53.5]} 25. Rd8 {[%clk 0:02:20.7]} 25... Kg7 {[%clk 0:00:39.5]} 26.
Bxf8+ {[%clk 0:02:15.5]} 26... Rxf8 {[%clk 0:00:37.1]} 27. Rxd5 {[%clk
0:02:12.8]} 27... Rf7 {[%clk 0:00:27.7]} 28. Kf2 {[%clk 0:02:10.7]} 28... Re7
{[%clk 0:00:26.8]} 29. c4 {[%clk 0:02:07.5]} 29... f5 {[%clk 0:00:24.8]} 30. c5
{[%clk 0:02:01.1]} 30... Rc7 {[%clk 0:00:17.6]} 31. b4 {[%clk 0:01:57.1]} 31...
a6 {[%clk 0:00:16.3]} 32. a4 {[%clk 0:01:55.9]} 32... Kf6 {[%clk 0:00:13.3]} 33.
Rd6+ {[%clk 0:01:53.9]} 33... Kf7 {[%clk 0:00:12.2]} 34. d5 {[%clk 0:01:52]}
34... Ke7 {[%clk 0:00:10.2]} 35. Rb6 {[%clk 0:01:50.3]} 35... Rd7 {[%clk
0:00:07.9]} 36. c6 {[%clk 0:01:16.6]} 36... bxc6 {[%clk 0:00:04.9]} 37. dxc6
{[%clk 0:01:14.4]} 37... Rc7 {[%clk 0:00:03.2]} 38. Rxa6 {[%clk 0:01:11.7]}
38... Kd6 {[%clk 0:00:01.2]} 39. b5 {[%clk 0:01:10.9]} 1-0

[Event "Live Chess"]
[Site "Chess.com"]
[Date "2023.05.20"]
[Round "-"]
[White "EdenHazard8"]
[Black "Olisingapore"]
[Result "1-0"]
[WhiteElo "2091"]
[BlackElo "1880"]
[TimeControl "300"]
[EndTime "13:17:54 PDT"]
[Termination "EdenHazard8 won on time"]

1. e4 {[%clk 0:04:59.1]} 1... c5 {[%clk 0:04:59.2]} 2. Nc3 {[%clk 0:04:57]} 2...
d6 {[%clk 0:04:58.2]} 3. f4 {[%clk 0:04:56.9]} 3... g6 {[%clk 0:04:55.5]} 4. Nf3
{[%clk 0:04:54.2]} 4... Bg7 {[%clk 0:04:53.4]} 5. Bc4 {[%clk 0:04:53]} 5... Nc6
{[%clk 0:04:52.2]} 6. O-O {[%clk 0:04:45.5]} 6... e6 {[%clk 0:04:38.1]} 7. d3
{[%clk 0:04:44.3]} 7... Nge7 {[%clk 0:04:34.3]} 8. Qe1 {[%clk 0:04:43.7]} 8...
d5 {[%clk 0:04:20.1]} 9. Bb3 {[%clk 0:04:42.5]} 9... Nd4 {[%clk 0:04:16.9]} 10.
Qh4 {[%clk 0:04:37.1]} 10... O-O {[%clk 0:04:12.6]} 11. f5 {[%clk 0:04:34.8]}
11... exf5 {[%clk 0:03:54.1]} 12. exd5 {[%clk 0:04:33.2]} 12... Nxb3 {[%clk
0:03:38.3]} 13. axb3 {[%clk 0:04:33.1]} 13... Nxd5 {[%clk 0:03:33.2]} 14. Bg5
{[%clk 0:04:32.2]} 14... Qd6 {[%clk 0:03:27.7]} 15. Bh6 {[%clk 0:04:23]} 15...
Nxc3 {[%clk 0:03:18]} 16. bxc3 {[%clk 0:04:21.5]} 16... Bxc3 {[%clk 0:03:11]}
17. Bxf8 {[%clk 0:04:07.3]} 17... Qxf8 {[%clk 0:03:08.3]} 18. Rad1 {[%clk
0:04:00.2]} 18... b5 {[%clk 0:03:05.6]} 19. d4 {[%clk 0:03:58.8]} 19... a5
{[%clk 0:03:01.7]} 20. d5 {[%clk 0:03:56.3]} 20... a4 {[%clk 0:02:58.9]} 21. d6
{[%clk 0:03:53.3]} 21... a3 {[%clk 0:02:52.5]} 22. Qe7 {[%clk 0:03:32.3]} 22...
a2 {[%clk 0:02:37.6]} 23. Ra1 {[%clk 0:03:22.7]} 23... Bxa1 {[%clk 0:02:34.9]}
24. Rxa1 {[%clk 0:03:22.6]} 24... Be6 {[%clk 0:02:13.3]} 25. Ne5 {[%clk
0:03:17.3]} 25... c4 {[%clk 0:02:07.4]} 26. b4 {[%clk 0:02:53.7]} 26... Qxe7
{[%clk 0:01:57.4]} 27. dxe7 {[%clk 0:02:52.4]} 27... c3 {[%clk 0:01:52.4]} 28.
Nc6 {[%clk 0:02:51.3]} 28... Re8 {[%clk 0:01:30.3]} 29. Nd4 {[%clk 0:02:46.4]}
29... Bc4 {[%clk 0:01:27.4]} 30. Nc6 {[%clk 0:02:38.1]} 30... Bd5 {[%clk
0:01:21.5]} 31. Nd4 {[%clk 0:02:35.8]} 31... Rxe7 {[%clk 0:01:18.5]} 32. Nxb5
{[%clk 0:02:34.2]} 32... Rb7 {[%clk 0:01:07.5]} 33. Nxc3 {[%clk 0:02:32.2]}
33... Rxb4 {[%clk 0:01:03.2]} 34. Nxa2 {[%clk 0:02:28.2]} 34... Ra4 {[%clk
0:01:00.3]} 35. Rd1 {[%clk 0:02:26]} 35... Bxa2 {[%clk 0:00:57.8]} 36. Ra1
{[%clk 0:02:23.8]} 36... Kf8 {[%clk 0:00:54.6]} 37. Kf2 {[%clk 0:02:23.2]} 37...
Ke7 {[%clk 0:00:53.6]} 38. Ke3 {[%clk 0:02:22.8]} 38... Kd6 {[%clk 0:00:53.1]}
39. Kd2 {[%clk 0:02:22.4]} 39... Kc5 {[%clk 0:00:52.6]} 40. Kc3 {[%clk 0:02:22]}
40... Kb5 {[%clk 0:00:37.4]} 41. Re1 {[%clk 0:02:19.8]} 41... Be6 {[%clk
0:00:36]} 42. Rb1+ {[%clk 0:02:18.5]} 42... Kc5 {[%clk 0:00:34.4]} 43. Re1
{[%clk 0:02:18.1]} 43... Ra3+ {[%clk 0:00:32.7]} 44. Kd2 {[%clk 0:02:16.5]}
44... Kd4 {[%clk 0:00:29.8]} 45. Rb1 {[%clk 0:02:13.3]} 45... Ra4 {[%clk
0:00:15.4]} 46. c3+ {[%clk 0:02:11]} 46... Kc4 {[%clk 0:00:14.4]} 47. Rb2 {[%clk
0:02:09.3]} 47... Ra3 {[%clk 0:00:13.4]} 48. Rb8 {[%clk 0:02:07.3]} 48... Rxc3
{[%clk 0:00:12.3]} 49. Rb7 {[%clk 0:02:03.7]} 49... Kd4 {[%clk 0:00:12.2]} 50.
Rb6 {[%clk 0:02:01.5]} 50... Rc4 {[%clk 0:00:11.1]} 51. Rd6+ {[%clk 0:02:00.2]}
51... Ke5 {[%clk 0:00:09.5]} 52. Rb6 {[%clk 0:01:58.5]} 52... Ra4 {[%clk
0:00:08.5]} 53. Rb5+ {[%clk 0:01:57.6]} 53... Kf6 {[%clk 0:00:07.1]} 54. Rb2
{[%clk 0:01:56.8]} 54... Rh4 {[%clk 0:00:05.6]} 55. h3 {[%clk 0:01:55.3]} 55...
Rd4+ {[%clk 0:00:05.1]} 56. Ke3 {[%clk 0:01:54.1]} 56... Rd5 {[%clk 0:00:04.2]}
57. Rf2 {[%clk 0:01:52.8]} 57... Ra5 {[%clk 0:00:03.6]} 58. g4 {[%clk
0:01:51.8]} 58... Ra3+ {[%clk 0:00:03.1]} 59. Kf4 {[%clk 0:01:51.1]} 59... fxg4
{[%clk 0:00:02.6]} 60. Ke4+ {[%clk 0:01:48.2]} 60... Kg7 {[%clk 0:00:02.5]} 61.
hxg4 {[%clk 0:01:46.9]} 61... Ra4+ {[%clk 0:00:02.4]} 62. Ke5 {[%clk 0:01:46.1]}
62... Rxg4 {[%clk 0:00:01.6]} 63. Kd6 {[%clk 0:01:45.4]} 63... Rg5 {[%clk
0:00:01.1]} 64. Ke7 {[%clk 0:01:44.6]} 64... Rd5 {[%clk 0:00:01]} 65. Ke8 {[%clk
0:01:43.7]} 1-0

[Event "Live Chess"]
[Site "Chess.com"]
[Date "2023.05.20"]
[Round "-"]
[White "toog"]
[Black "tuppyglossop"]
[Result "1-0"]
[WhiteElo "2614"]
[BlackElo "1605"]
[TimeControl "300"]
[EndTime "13:18:06 PDT"]
[Termination "toog won by resignation"]

1. e4 {[%clk 0:04:58.2]} 1... e6 {[%clk 0:04:58.1]} 2. d4 {[%clk 0:04:55.6]}
2... d5 {[%clk 0:04:57]} 3. Nd2 {[%clk 0:04:53.8]} 3... c5 {[%clk 0:04:55.3]} 4.
Ngf3 {[%clk 0:04:49.7]} 4... cxd4 {[%clk 0:04:52.2]} 5. Nxd4 {[%clk 0:04:49.6]}
5... Nc6 {[%clk 0:04:51.4]} 6. Bb5 {[%clk 0:04:47.3]} 6... Bd7 {[%clk
0:04:49.6]} 7. Nxc6 {[%clk 0:04:46.8]} 7... Bxc6 {[%clk 0:04:48.6]} 8. Qe2
{[%clk 0:04:41.5]} 8... Bxb5 {[%clk 0:04:43.8]} 9. Qxb5+ {[%clk 0:04:41.4]} 9...
Qd7 {[%clk 0:04:43.3]} 10. Qxd7+ {[%clk 0:04:40.4]} 10... Kxd7 {[%clk
0:04:42.2]} 11. exd5 {[%clk 0:04:40.3]} 11... exd5 {[%clk 0:04:41.4]} 12. Nb3
{[%clk 0:04:39.3]} 12... Nf6 {[%clk 0:04:39.8]} 13. Be3 {[%clk 0:04:37.6]} 13...
Bb4+ {[%clk 0:04:37.3]} 14. c3 {[%clk 0:04:36.3]} 14... Bd6 {[%clk 0:04:36.2]}
15. f3 {[%clk 0:04:34.1]} 15... Rhe8 {[%clk 0:04:32.6]} 16. Kd2 {[%clk
0:04:32.6]} 16... a5 {[%clk 0:04:26.2]} 17. a4 {[%clk 0:04:28.3]} 17... h6
{[%clk 0:04:18.9]} 18. Bd4 {[%clk 0:04:26.7]} 18... Be5 {[%clk 0:04:14.5]} 19.
Rae1 {[%clk 0:04:24.3]} 19... Bxd4 {[%clk 0:04:13.3]} 20. Nxd4 {[%clk
0:04:24.2]} 20... Nh5 {[%clk 0:04:04.8]} 21. g3 {[%clk 0:04:19.5]} 21... Nf6
{[%clk 0:04:00]} 22. Kd3 {[%clk 0:04:17.6]} 22... g6 {[%clk 0:03:58.7]} 23. Nc2
{[%clk 0:04:04.9]} 23... Kd6 {[%clk 0:03:49.2]} 24. Na3 {[%clk 0:04:01.8]} 24...
Kc5 {[%clk 0:03:43.5]} 25. Nb5 {[%clk 0:03:53.1]} 25... Rac8 {[%clk 0:03:36.6]}
26. Rb1 {[%clk 0:03:39.3]} 26... Nd7 {[%clk 0:03:34.4]} 27. b4+ {[%clk
0:03:34.9]} 27... axb4 {[%clk 0:03:33]} 28. cxb4+ {[%clk 0:03:34.8]} 28... Kb6
{[%clk 0:03:28.7]} 29. Nd6 {[%clk 0:03:30.5]} 29... Ne5+ {[%clk 0:03:18.1]} 30.
Kd2 {[%clk 0:03:20.4]} 30... Nc4+ {[%clk 0:03:13.9]} 31. Nxc4+ {[%clk
0:03:19.3]} 31... Rxc4 {[%clk 0:03:12.7]} 32. Rhc1 {[%clk 0:03:18.1]} 32... Rec8
{[%clk 0:03:00.4]} 33. Rxc4 {[%clk 0:03:17]} 33... Rxc4 {[%clk 0:02:55.2]} 34.
Kd3 {[%clk 0:03:15.2]} 34... Kc6 {[%clk 0:02:52.3]} 35. Rb3 {[%clk 0:03:11.3]}
35... f5 {[%clk 0:02:50.5]} 36. Rc3 {[%clk 0:03:06.4]} 36... Rxc3+ {[%clk
0:02:43.7]} 37. Kxc3 {[%clk 0:03:06.3]} 37... b6 {[%clk 0:02:40.6]} 38. Kd4
{[%clk 0:03:04.8]} 38... Kd6 {[%clk 0:02:36.8]} 39. a5 {[%clk 0:03:02]} 39...
bxa5 {[%clk 0:02:31.5]} 40. bxa5 {[%clk 0:03:01.9]} 1-0

[Event "Live Chess"]
[Site "Chess.com"]
[Date "2023.05.20"]
[Round "-"]
[White "Bob2pen"]
[Black "JormaIbo"]
[Result "1-0"]
[WhiteElo "1835"]
[BlackElo "420"]
[TimeControl "300"]
[EndTime "13:18:09 PDT"]
[Termination "Bob2pen won by checkmate"]

1. e4 {[%clk 0:04:56.1]} 1... e5 {[%clk 0:04:58.9]} 2. Nf3 {[%clk 0:04:55.1]}
2... Nc6 {[%clk 0:04:57]} 3. Bb5 {[%clk 0:04:53.8]} 3... a6 {[%clk 0:04:55.7]}
4. Ba4 {[%clk 0:04:52.2]} 4... Nf6 {[%clk 0:04:53.8]} 5. O-O {[%clk 0:04:50.8]}
5... Be7 {[%clk 0:04:45.6]} 6. Re1 {[%clk 0:04:49.2]} 6... O-O {[%clk
0:04:44.2]} 7. c3 {[%clk 0:04:45.6]} 7... b5 {[%clk 0:04:42.7]} 8. Bb3 {[%clk
0:04:43]} 8... d5 {[%clk 0:04:22.8]} 9. d4 {[%clk 0:04:40.3]} 9... exd4 {[%clk
0:04:14.4]} 10. exd5 {[%clk 0:04:29.7]} 10... Na5 {[%clk 0:03:51.7]} 11. Nxd4
{[%clk 0:04:22.2]} 11... Nxb3 {[%clk 0:03:44.4]} 12. axb3 {[%clk 0:04:19.7]}
12... Nxd5 {[%clk 0:03:40.5]} 13. Nc6 {[%clk 0:04:16.8]} 13... Qd7 {[%clk
0:03:23.2]} 14. Qxd5 {[%clk 0:04:09.2]} 14... Re8 {[%clk 0:02:36.7]} 15. Qxd7
{[%clk 0:04:05.1]} 15... Bxd7 {[%clk 0:02:35.2]} 16. Nxe7+ {[%clk 0:04:03.8]}
16... Kh8 {[%clk 0:02:32.8]} 17. Bf4 {[%clk 0:03:51.5]} 17... c6 {[%clk
0:02:14.6]} 18. Nd2 {[%clk 0:03:48.1]} 18... g6 {[%clk 0:01:43.1]} 19. Be5+
{[%clk 0:03:41.2]} 19... f6 {[%clk 0:01:40.7]} 20. Bxf6# {[%clk 0:03:39.3]} 1-0

[Event "Live Chess"]
[Site "Chess.com"]
[Date "2023.05.20"]
[Round "-"]
[White "diana21strabt"]
[Black "therealab0ne"]
[Result "1-0"]
[WhiteElo "1683"]
[BlackElo "704"]
[TimeControl "300"]
[EndTime "13:18:10 PDT"]
[Termination "diana21strabt won by resignation"]

1. e4 {[%clk 0:04:57.8]} 1... c5 {[%clk 0:04:55.7]} 2. Nf3 {[%clk 0:04:56.9]}
2... Nc6 {[%clk 0:04:55.1]} 3. d4 {[%clk 0:04:55.8]} 3... cxd4 {[%clk
0:04:54.3]} 4. Nxd4 {[%clk 0:04:54.8]} 4... Nf6 {[%clk 0:04:54.1]} 5. Nc3 {[%clk
0:04:53.5]} 5... g6 {[%clk 0:04:50.9]} 6. Be3 {[%clk 0:04:52.2]} 6... Bg7 {[%clk
0:04:50.3]} 7. Bc4 {[%clk 0:04:49.1]} 7... e6 {[%clk 0:04:47.3]} 8. O-O {[%clk
0:04:47.9]} 8... d5 {[%clk 0:04:45.7]} 9. exd5 {[%clk 0:04:46.4]} 9... exd5
{[%clk 0:04:45]} 10. Nxc6 {[%clk 0:04:43.7]} 10... bxc6 {[%clk 0:04:43.8]} 11.
Bb3 {[%clk 0:04:42.3]} 11... O-O {[%clk 0:04:40]} 12. Bd4 {[%clk 0:04:40.5]}
12... Re8 {[%clk 0:04:10.8]} 13. h3 {[%clk 0:04:34.2]} 13... Bxh3 {[%clk
0:04:01.6]} 14. gxh3 {[%clk 0:04:30]} 14... Ne4 {[%clk 0:03:38.7]} 15. Bxg7
{[%clk 0:04:25.6]} 15... Kxg7 {[%clk 0:03:37.8]} 16. Qd4+ {[%clk 0:04:17.6]}
16... Qf6 {[%clk 0:03:34.6]} 17. Qxf6+ {[%clk 0:04:16]} 17... Nxf6 {[%clk
0:03:33.8]} 18. Rae1 {[%clk 0:04:13.9]} 18... Rxe1 {[%clk 0:03:32.4]} 19. Rxe1
{[%clk 0:04:13]} 19... Re8 {[%clk 0:03:19.5]} 20. Rxe8 {[%clk 0:04:11.3]} 20...
Nxe8 {[%clk 0:03:18.6]} 21. Ba4 {[%clk 0:04:10]} 21... f5 {[%clk 0:02:58.1]} 22.
Bxc6 {[%clk 0:04:07.5]} 22... Nf6 {[%clk 0:02:55]} 23. Bxd5 {[%clk 0:03:56]}
23... Nxd5 {[%clk 0:02:52.2]} 24. Nxd5 {[%clk 0:03:53.4]} 24... g5 {[%clk
0:02:49.9]} 25. Ne3 {[%clk 0:03:50.2]} 25... Kg6 {[%clk 0:02:47.2]} 26. Kg2
{[%clk 0:03:48.4]} 26... g4 {[%clk 0:02:45.3]} 27. hxg4 {[%clk 0:03:46.6]} 27...
fxg4 {[%clk 0:02:43.6]} 28. Nxg4 {[%clk 0:03:45.1]} 28... h5 {[%clk 0:02:42.8]}
29. Ne5+ {[%clk 0:03:37.5]} 29... Kg5 {[%clk 0:02:36.4]} 30. Kg3 {[%clk
0:03:35.1]} 30... h4+ {[%clk 0:02:18.2]} 31. Kh3 {[%clk 0:03:28.1]} 1-0

[Event "Live Chess"]
[Site "Chess.com"]
[Date "2023.05.20"]
[Round "-"]
[White "mightysmasher"]
[Black "rideuv21"]
[Result "0-1"]
[WhiteElo "2108"]
[BlackElo "1828"]
[TimeControl "300"]
[EndTime "13:18:19 PDT"]
[Termination "rideuv21 won by resignation"]

1. e4 {[%clk 0:04:56.8]} 1... c5 {[%clk 0:04:59.9]} 2. c3 {[%clk 0:04:54.2]}
2... Nf6 {[%clk 0:04:58.4]} 3. e5 {[%clk 0:04:53.2]} 3... Nd5 {[%clk 0:04:57.9]}
4. d4 {[%clk 0:04:52.4]} 4... cxd4 {[%clk 0:04:57.8]} 5. cxd4 {[%clk 0:04:51.9]}
5... d6 {[%clk 0:04:56.2]} 6. Nf3 {[%clk 0:04:51.3]} 6... Nc6 {[%clk 0:04:52.2]}
7. Bc4 {[%clk 0:04:50.5]} 7... e6 {[%clk 0:04:50.9]} 8. Bxd5 {[%clk 0:04:49.5]}
8... exd5 {[%clk 0:04:50.3]} 9. exd6 {[%clk 0:04:49.1]} 9... Bxd6 {[%clk
0:04:49.8]} 10. O-O {[%clk 0:04:48.1]} 10... O-O {[%clk 0:04:49.3]} 11. Nc3
{[%clk 0:04:47.5]} 11... Bg4 {[%clk 0:04:46.5]} 12. Be3 {[%clk 0:04:46.8]} 12...
Bc7 {[%clk 0:04:36.4]} 13. h3 {[%clk 0:04:43.5]} 13... Bh5 {[%clk 0:04:35]} 14.
g3 {[%clk 0:04:36.8]} 14... a6 {[%clk 0:04:33]} 15. Kg2 {[%clk 0:04:35.3]} 15...
Re8 {[%clk 0:04:31.7]} 16. g4 {[%clk 0:04:33.8]} 16... Bg6 {[%clk 0:04:29.8]}
17. Re1 {[%clk 0:04:31.1]} 17... h5 {[%clk 0:04:28.1]} 18. Qb3 {[%clk
0:04:28.5]} 18... hxg4 {[%clk 0:04:23.9]} 19. hxg4 {[%clk 0:04:26.9]} 19... Qc8
{[%clk 0:04:23.3]} 20. Nxd5 {[%clk 0:04:15.7]} 20... Qxg4+ {[%clk 0:04:20.8]}
21. Kf1 {[%clk 0:04:14.1]} 21... Ba5 {[%clk 0:04:09.2]} 22. Ne5 {[%clk
0:04:05.5]} 22... Nxe5 {[%clk 0:04:05]} 23. dxe5 {[%clk 0:04:04.3]} 23... Bxe1
{[%clk 0:04:02.8]} 24. Rxe1 {[%clk 0:04:01.9]} 24... Qh3+ {[%clk 0:03:56.8]} 25.
Ke2 {[%clk 0:04:00.1]} 25... Be4 {[%clk 0:03:50.2]} 26. Nf6+ {[%clk 0:03:43.1]}
26... gxf6 {[%clk 0:03:37.9]} 27. Rg1+ {[%clk 0:03:41.7]} 27... Bg2 {[%clk
0:03:37.3]} 28. Qxb7 {[%clk 0:03:35.2]} 28... Qg4+ {[%clk 0:03:26.8]} 29. Ke1
{[%clk 0:03:29.4]} 29... Bxb7 {[%clk 0:03:24.2]} 30. Rxg4+ {[%clk 0:03:28.4]}
30... Kh7 {[%clk 0:03:23.4]} 31. exf6 {[%clk 0:03:27.3]} 31... Re6 {[%clk
0:03:16.7]} 32. Rg7+ {[%clk 0:03:25.9]} 32... Kh8 {[%clk 0:03:14.7]} 33. Rxf7
{[%clk 0:03:25]} 33... Bd5 {[%clk 0:03:14.2]} 34. Kf1 {[%clk 0:03:24.4]} 34...
Rxe3 {[%clk 0:03:11.3]} 35. fxe3 {[%clk 0:03:21.2]} 35... Bxf7 {[%clk
0:03:09.8]} 0-1

[Event "Live Chess"]
[Site "Chess.com"]
[Date "2023.05.20"]
[Round "-"]
[White "Richardallis"]
[Black "Doge_Dandolo"]
[Result "1-0"]
[WhiteElo "1867"]
[BlackElo "2017"]
[TimeControl "300"]
[EndTime "13:18:19 PDT"]
[Termination "Richardallis won by resignation"]

1. d4 {[%clk 0:04:58.5]} 1... d5 {[%clk 0:04:57.9]} 2. Nf3 {[%clk 0:04:57.9]}
2... Nf6 {[%clk 0:04:55.9]} 3. Bg5 {[%clk 0:04:57.1]} 3... Ne4 {[%clk 0:04:54]}
4. Bf4 {[%clk 0:04:56.1]} 4... c6 {[%clk 0:04:52.4]} 5. c3 {[%clk 0:04:55.5]}
5... Bf5 {[%clk 0:04:51.4]} 6. Nbd2 {[%clk 0:04:54.4]} 6... e6 {[%clk
0:04:50.1]} 7. e3 {[%clk 0:04:53.5]} 7... Nd7 {[%clk 0:04:47.4]} 8. Nxe4 {[%clk
0:04:52.5]} 8... Bxe4 {[%clk 0:04:46]} 9. Bd3 {[%clk 0:04:51.1]} 9... Nf6 {[%clk
0:04:44.1]} 10. Bxe4 {[%clk 0:04:50.1]} 10... Nxe4 {[%clk 0:04:43]} 11. O-O
{[%clk 0:04:49]} 11... f5 {[%clk 0:04:41.4]} 12. Ne5 {[%clk 0:04:46.6]} 12...
Qf6 {[%clk 0:04:27.3]} 13. a4 {[%clk 0:04:32.3]} 13... Bd6 {[%clk 0:04:19.4]}
14. Qb3 {[%clk 0:04:30.5]} 14... Qe7 {[%clk 0:04:10.3]} 15. a5 {[%clk
0:04:15.3]} 15... g5 {[%clk 0:04:08.7]} 16. Bg3 {[%clk 0:04:08]} 16... h5 {[%clk
0:04:07.5]} 17. h3 {[%clk 0:04:06.1]} 17... g4 {[%clk 0:04:03.6]} 18. h4 {[%clk
0:04:02.4]} 18... Nxg3 {[%clk 0:04:02]} 19. fxg3 {[%clk 0:04:01.1]} 19... Bxe5
{[%clk 0:04:00.7]} 20. dxe5 {[%clk 0:03:59.7]} 20... Qc7 {[%clk 0:03:54.5]} 21.
Qb4 {[%clk 0:03:58.4]} 21... Rh7 {[%clk 0:03:43.5]} 22. Qf4 {[%clk 0:03:55.6]}
22... O-O-O {[%clk 0:03:37]} 23. b4 {[%clk 0:03:52.9]} 23... a6 {[%clk
0:03:35.7]} 24. c4 {[%clk 0:03:49.7]} 24... dxc4 {[%clk 0:03:32.3]} 25. Rac1
{[%clk 0:03:48.3]} 25... Rd5 {[%clk 0:03:30.6]} 26. Rxc4 {[%clk 0:03:40.9]}
26... Qxe5 {[%clk 0:03:28.9]} 27. Qg5 {[%clk 0:03:39.6]} 27... Qg7 {[%clk
0:03:23.8]} 28. Qf4 {[%clk 0:03:37.3]} 28... Qe5 {[%clk 0:03:12.8]} 29. Qg5
{[%clk 0:03:36]} 29... Qxe3+ {[%clk 0:03:08.3]} 30. Qxe3 {[%clk 0:03:34.5]} 1-0

[Event "Live Chess"]
[Site "Chess.com"]
[Date "2023.05.20"]
[Round "-"]
[White "Leonid_Starozhilov"]
[Black "noobsmoker24"]
[Result "1-0"]
[WhiteElo "2637"]
[BlackElo "1363"]
[TimeControl "300"]
[EndTime "13:18:21 PDT"]
[Termination "Leonid_Starozhilov won by resignation"]

1. b3 {[%clk 0:04:59.2]} 1... e5 {[%clk 0:04:43.5]} 2. Bb2 {[%clk 0:04:59.1]}
2... Nc6 {[%clk 0:04:36]} 3. e3 {[%clk 0:04:58.1]} 3... d5 {[%clk 0:04:34.7]} 4.
Bb5 {[%clk 0:04:56.4]} 4... f6 {[%clk 0:04:32]} 5. c4 {[%clk 0:04:53.7]} 5...
Be6 {[%clk 0:04:30.6]} 6. cxd5 {[%clk 0:04:51]} 6... Bxd5 {[%clk 0:04:29.6]} 7.
Nf3 {[%clk 0:04:49.5]} 7... Ne7 {[%clk 0:04:24.3]} 8. Nc3 {[%clk 0:04:48]} 8...
Be6 {[%clk 0:04:22.5]} 9. d4 {[%clk 0:04:46.9]} 9... exd4 {[%clk 0:04:18.2]} 10.
Nxd4 {[%clk 0:04:45.4]} 10... Bd7 {[%clk 0:04:11.1]} 11. Nxc6 {[%clk 0:04:39]}
11... Nxc6 {[%clk 0:04:09.4]} 12. O-O {[%clk 0:04:36.6]} 12... Bd6 {[%clk
0:04:06.5]} 13. Ne4 {[%clk 0:04:34.8]} 13... Qe7 {[%clk 0:04:04]} 14. Nxd6+
{[%clk 0:04:33.5]} 14... Qxd6 {[%clk 0:04:03.9]} 15. Qxd6 {[%clk 0:04:32.1]}
15... cxd6 {[%clk 0:04:03.8]} 16. Rfd1 {[%clk 0:04:31.4]} 1-0